[Event "Bangabandhu Premier Div League 2022"]
[Site "Dhaka"]
[Date "2022.12.09"]
[Round "10.4"]
[White "Reefat, Bin-Sattar"]
[Black "Jabed Al Azad"]
[Result "1-0"]
[ECO "B12"]
[WhiteElo "2367"]
[BlackElo "2084"]
[Annotator "TA"]
[PlyCount "93"]
[EventDate "2022.12.01"]
[EventCountry "BAN"]
[SourceTitle "playchess.com"]
[Source "ChessBase"]
[SourceQuality "1"]
[TimeControl "40/5400+30:1800+30"]

{[%evp 11,93,17,16,11,16,0,27,27,29,29,22,22,31,22,28,27,29,27,47,22,53,43,43,47,26,35,56,38,60,52,42,8,20,2,27,18,14,30,25,0,54,53,53,59,70,0,28,19,104,111,101,103,86,0,0,0,0,0,851,842,977,804,1311,636,632,558,778,720,1666,5118,29982,1197,1053,0,5214,6197,5400,8947,6191,6065,2258,2092,975,764]} 1. e4 {[%emt 0:00:19]} c6 {[%emt 0:00:02]} 2. d4 {[%emt 0:00:30]} d5 {[%emt 0:00:30]} 3. e5 {[%emt 0:00:30]} Bf5 {[%emt 0:00:30]} 4. c4 {[%emt 0:00:30]} e6 {[%emt 0:00:30]} 5. Nc3 {[%emt 0:00:30]} Nd7 {[%emt 0:00:30]} 6. cxd5 {[%emt 0:00:30]} cxd5 {[%emt 0:00:30]} 7. h4 {[%emt 0:00:30] g4 is the strong threat. B12: Caro-Kann: Advance Variation.} h6 {[%emt 0:00:30]} 8. h5 {[%emt 0:00:30] [#]} a6 $146 {[%emt 0:02:08]} ({Predecessor:} 8... Ne7 9. g4 Bh7 10. Bd3 Bxd3 11. Qxd3 Nc6 12. f4 Qb6 13. Nf3 O-O-O 14. O-O Kb8 {½-½ (37) Nevednichy,V (2601)-Polak,T (2507) Hungary 2010}) 9. g4 {[%emt 0:15:58] White has an edge.} Bh7 {[%emt 0:00:05]} 10. Bd3 {[%emt 0:00:04]} Bxd3 {[%emt 0:00:11]} 11. Qxd3 {[%emt 0:00:04]} Ne7 {[%emt 0:00:39]} 12. f4 {[%emt 0:00:06]} Qb6 {[%emt 0:01:05]} 13. Nf3 {[%emt 1:16:59]} Nc6 {[%emt 1:29:50]} 14. Bd2 {[%emt 0:00:00]} Bb4 {[%emt 0:00:30]} 15. Ne2 {[%emt 0:00:00]} Qb5 {[%emt 0:00:00]} 16. Qxb5 {[%emt 0:00:00]} axb5 {[%emt 0:00:00]} 17. f5 {[%emt 0:00:00]} Nb6 {[%emt 0:01:30]} 18. b3 {[%emt 0:00:00] Inhibits Nc4.} Be7 {[%emt 0:00:00]} 19. O-O {[%emt 0:03:00]} exf5 {[%emt 0:00:00]} 20. gxf5 {[%emt 0:00:30]} Bg5 {[%emt 0:01:30]} 21. Rfd1 {[%emt 0:00:00]} f6 {[%emt 0:00:30]} 22. Nc3 {[%emt 0:01:00]} b4 {[%emt 0:00:00]} (22... O-O $5 {[%cal Rg5d2]}) 23. Nb5 {[%emt 0:00:30] And now Nc7+ would win.} O-O {[%emt 0:00:00]} 24. Nxg5 {[%emt 0:00:30]} hxg5 {[%emt 0:00:00]} 25. e6 {[%emt 0:00:00]} (25. Rf1 {simplifies} fxe5 26. dxe5 Nxe5 27. Bxg5 Ra5 28. Nd4) 25... Rab8 {[%emt 0:00:00]} (25... Rfd8 $11) 26. Be1 {[%emt 0:00:00]} Nc8 $1 {[%emt 0:00:00]} 27. Bg3 {[%emt 0:00:00]} Ra8 {[%emt 0:00:00]} 28. Bd6 {[%emt 0:00:00]} (28. Rd2 $1 $14) 28... N8e7 {[%emt 0:00:00]} 29. Rf1 {[%emt 0:00:00]} Ra5 {[%emt 0:00:00]} (29... Rfd8 $11 {remains equal.}) 30. Bxe7 $1 $16 {[%emt 0:00:00] White is much more active.} Nxe7 {[%emt 0:00:00]} 31. Nd6 {[%emt 0:00:11]} Rfa8 {[%emt 0:00:00]} 32. Rac1 {[%emt 0:00:30]} ({Better is} 32. Rf2 $16) 32... Rxa2 $11 {[%emt 0:00:00]} 33. Rc7 $36 {[%emt 0:00:30][%mdl 2048] White is pushing.} Rd2 {[%emt 0:00:00]} 34. Rf2 {[%emt 0:00:30]} (34. Nxb7 $2 {is the wrong capture.} Raa2 $1 35. Rf3 (35. Rxe7 $2 {leads to mate.} Rg2+ 36. Kh1 Rh2+ 37. Kg1 Rag2#) 35... g4 $19) (34. Rxe7 $5 Raa2 $8 35. Rf3 (35. Nxb7 $2 Rg2+ 36. Kh1 Rh2+ 37. Kg1 Rag2#) 35... Rg2+ 36. Kf1 $11) 34... Rxf2 {[%emt 0:00:00][%mdl 8192]} (34... Ra1+ $2 35. Kg2 Rxf2+ 36. Kxf2 Ra2+ 37. Kf3 $18) (34... Rd1+ $11 35. Rf1 Rd2) 35. Kxf2 {[%emt 0:00:30][%mdl 4096] Endgame KRN-KRN} Kf8 {[%emt 0:00:00]} 36. Rxb7 {[%emt 0:00:30]} ({Weaker is} 36. Nxb7 Nxf5 37. Rf7+ Ke8 $17) 36... Rd8 {[%emt 0:00:00] [#]} 37. Ke3 {[%emt 0:00:30]} Nc6 $18 {[%emt 0:00:00]} 38. Nf7 {[%emt 0:00:30]} Rb8 {[%emt 0:00:00]} 39. Rd7 {[%emt 0:00:30] Hoping for Nd6.} Ne7 {[%emt 0:00:00]} 40. Nd6 {[%emt 0:00:30]} Nc6 {[%emt 0:00:00]} 41. Rc7 {[%emt 0:30:30]} (41. Rf7+ $142 Kg8 42. Rc7 Na5 43. e7 g4 44. e8=Q+ Rxe8+ 45. Nxe8 Kf8 46. Nxg7) 41... Ne7 {[%emt 0:00:00]} 42. Rd7 $2 {[%emt 0:00:30]} (42. Kf3 $18 Rd8 {[#]} 43. Rb7 $1) 42... Ra8 $2 {[%emt 0:00:00][%mdl 8192]} (42... Nc6 $11 43. Rf7+ Kg8) 43. Kf3 {[%emt 0:00:30] White is clearly winning.} Rb8 {[%emt 0:00:00]} 44. Kg4 {[%emt 0:00:30]} Ra8 {[%emt 0:00:00]} 45. Nb5 {[%emt 0:00:30]} Rb8 {[%emt 0:00:00]} 46. Nc7 {[%emt 0:00:30]} Rc8 {[%emt 0:00:00]} 47. Nxd5 {[%emt 0:00:30] Weighted Error Value: White=0.44/Black=0.31} 1-0

[Event "Bangabandhu Premier Div League 2022"]
[Site "Dhaka"]
[Date "2022.12.09"]
[Round "10.4"]
[White "Jamal Uddin"]
[Black "Idani, Pouya"]
[Result "0-1"]
[ECO "A47"]
[WhiteElo "2092"]
[BlackElo "2631"]
[Annotator "TA"]
[PlyCount "120"]
[EventDate "2022.11.30"]
[EventType "team-tourn"]
[EventCountry "BAN"]
[SourceTitle "playchess.com"]
[Source "ChessBase"]
[SourceQuality "1"]
[TimeControl "40/5400+30:1800+30"]

{[%evp 9,120,5,19,23,22,9,6,6,8,16,34,19,37,9,17,19,31,-10,0,-14,16,-11,-17,-21,-18,-32,-7,-17,31,15,26,16,27,30,117,95,199,186,234,220,213,220,224,196,298,272,272,240,241,241,233,233,225,224,300,292,358,335,349,222,189,190,290,-191,-197,-355,-355,-347,-347,-325,-254,-247,-241,-266,-160,-1548,-1408,-1558,-1584,-1562,-1540,-1471,-1424,-1319,-1319,-1292,-1248,-1280,-1100,-1554,-1498,-7646,-6136,-5762,-4728,-29978,-29979,-29979,-29980,-29980,-29981,-29981,-29982,-29982,-29983,-29983,-29984,-29984,-29985,-29985,-29986,-29985,-29984]} 1. d4 {[%emt 0:00:20]} Nf6 {[%emt 0:00:14]} 2. Nf3 {[%emt 0:00:11]} e6 {[%emt 0:01:13]} 3. Bf4 {[%emt 0:00:40]} b6 {[%emt 0:00:06]} 4. Nbd2 {[%emt 0:00:37]} Bb7 {[%emt 0:00:19]} 5. e3 {[%emt 0:00:20]} g6 {[%emt 0:01:02]} 6. h3 {[%emt 0:00:26] A47: 1 d4 Nf6 2 Nf3 b6: Torre, London and Colle Systems.} Bg7 {[%emt 0:00:06]} 7. Bd3 {[%emt 0:00:40]} O-O {[%emt 0:00:23]} 8. O-O {[%emt 0:00:33] The position is equal.} d6 {[%emt 0:00:20]} 9. c3 {[%emt 0:00:37]} Nbd7 {[%emt 0:02:15][%cal Oe6e5]} 10. Bh2 {[%emt 0:00:45]} Qe7 {[%emt 0:02:25]} 11. Qe2 {[%emt 0:03:21]} a6 {[%emt 0:01:39]} 12. e4 {[%emt 0:01:35]} e5 {[%emt 0:00:06]} 13. dxe5 {[%emt 0:01:18]} dxe5 {[%emt 0:01:20] [#]} 14. Rfd1 $146 {[%emt 0:01:31]} ({Predecessor:} 14. Rad1 Nh5 15. Qe3 Rfe8 16. Rfe1 Qf8 17. Bc4 b5 18. Bd5 c6 19. Bb3 Nc5 20. Ng5 {0-1 (46) Anikonov,D (2400)-Riazantsev,A (2671) Khanty-Mansiysk 2016}) 14... Nh5 {[%emt 0:03:00]} 15. a4 {[%emt 0:03:20]} Nf4 {[%emt 0:01:30]} 16. Bxf4 {[%emt 0:00:32]} exf4 {[%emt 0:00:05]} 17. Bc4 {[%emt 0:00:33]} Nc5 {[%emt 0:04:46]} 18. Re1 Rad8 {[%emt 0:09:33]} (18... Qd7 $11) 19. e5 $14 {[%emt 0:04:29]} a5 {[%emt 0:01:02]} 20. Nd4 {[%emt 0:02:52]} (20. b4 {feels hotter.} Nd7 21. Rab1 axb4 22. e6) 20... Kh8 {[%emt 0:02:54]} (20... Qg5 21. N2f3 Qh5 22. Rad1 $16) 21. N2f3 {[%emt 0:05:37]} f6 {[%emt 0:10:32]} (21... Ne6 $11 {keeps the balance.}) 22. b4 $16 {[%emt 0:01:42]} Ne4 {[%emt 0:00:34]} (22... axb4 $16 23. cxb4 Ne4) 23. Qc2 $18 {[%emt 0:01:22]} Nxc3 {[%emt 0:04:58]} (23... f5 {was called for.}) 24. Qxc3 {[%emt 0:02:12]} fxe5 {[%emt 0:00:07]} 25. Ne6 {[%emt 0:01:14]} (25. bxa5 exd4 26. Qd3 Qc5 $17) 25... axb4 {[%emt 0:00:04]} 26. Qb3 {[%emt 0:04:23][%cal Of3e5]} Bxf3 {[%emt 0:04:55]} (26... e4 {might work better.}) 27. gxf3 {[%emt 0:02:31]} e4 {[%emt 0:13:27]} 28. Nxd8 {[%emt 0:05:47]} Qxd8 {[%emt 0:06:56]} 29. Rad1 {[%emt 0:06:40]} Qg5+ {[%emt 0:00:06]} 30. Kh2 {[%emt 0:00:30]} e3 {[%emt 0:00:17]} 31. Rg1 {[%emt 0:00:11]} (31. Qxb4 $2 exf2 $19) 31... Qh4 {[%emt 0:00:05]} 32. Qc2 {[%emt 0:00:37]} ({Not} 32. fxe3 fxe3 33. Qxe3 Qxc4 $17) ({Don't take} 32. Rg2 Qe7 33. Qd3 Qe5 $18) 32... c5 {[%emt 0:01:25]} 33. Rg4 {[%emt 0:01:43]} Qe7 {[%emt 0:01:44]} 34. Qe4 {[%emt 0:02:38] Prevents Bd4.} Qxe4 {[%emt 0:01:54]} 35. fxe4 {[%emt 0:00:01]} b3 {[%emt 0:00:28] [#]} (35... Bd4 {was worth a try.} 36. fxe3 fxe3) 36. Kg2 $4 {[%emt 0:00:57][%mdl 8192]} (36. Bxb3 e2 37. Rc1 f3 $11) (36. fxe3 $1 $18 {was the only winning move.} Be5 37. Bxb3 fxe3+ 38. Kg1) 36... f3+ $19 {[%emt 0:00:07]} 37. Kh1 $2 {[%emt 0:10:54]} (37. Kf1 e2+ 38. Bxe2 fxe2+ 39. Kxe2) 37... e2 {[%emt 0:00:23]} 38. Rb1 {[%emt 0:00:55]} b2 {[%emt 0:02:43] Against e5} 39. e5 {[%emt 0:01:48]} Bxe5 {[%emt 0:00:09] Threatens to win with ...Rd8.} 40. Re4 {[%emt 0:00:25]} Bd4 {[%emt 0:01:20]} 41. Kg1 {[%emt 0:30:28]} Rf5 {[%emt 0:32:43] aiming for ...Rg5+. The board is on fire.} 42. h4 {[%emt 0:13:34] Inhibits Rg5+.} (42. Bxe2 $17 fxe2 43. Rxe2) 42... Re5 {[%emt 0:02:52]} 43. Rxe5 {[%emt 0:00:15]} Bxe5 {[%emt 0:00:04]} 44. Bd5 {[%emt 0:00:29]} Bc3 {[%emt 0:00:04]} 45. Bxf3 {[%emt 0:00:10]} e1=Q+ {[%emt 0:00:05]} ({Stronger than} 45... e1=B 46. Be4 $15) 46. Rxe1 {[%emt 0:00:10]} Bxe1 {[%emt 0:00:04][%mdl 4096] Endgame KB-KB} 47. Be4 {[%emt 0:00:09] Prevents b1Q.} Kg7 {[%emt 0:00:55]} 48. Kg2 {[%emt 0:00:55]} Kf6 {[%emt 0:02:53] Strongly threatening ...Ke5.} 49. Kf1 {[%emt 0:00:19]} Ke5 {[%emt 0:00:33]} 50. Bb1 {[%emt 0:00:16]} Bc3 {[%emt 0:00:15] And now ...Kf4 would win.} 51. Ke2 {[%emt 0:00:59]} Kf4 {[%emt 0:00:11]} 52. h5 {[%emt 0:00:23]} gxh5 {[%emt 0:00:05][%cal Bg6h5,Bh5h4,Bh4h3,Bh3h2][%mdl 32] Black mates.} 53. Bxh7 {[%emt 0:00:17]} h4 {[%emt 0:00:06]} 54. Kf1 {[%emt 0:07:47]} Bd4 {[%emt 0:00:06]} 55. Kg2 {[%emt 0:00:17]} c4 {[%emt 0:00:15][%cal Bc5c4,Bc4c3][%mdl 32]} 56. Bc2 {[%emt 0:00:48] [#]} Bxf2 $1 {[%emt 0:00:10][%mdl 512]} 57. Kxf2 {[%emt 0:00:21]} (57. a5 bxa5) 57... h3 {[%emt 0:00:04]} 58. Bb1 {[%emt 0:00:46]} c3 {[%emt 0:00:06]} 59. Bg6 {[%emt 0:00:35]} h2 {[%emt 0:00:05]} 60. Kg2 {[%emt 0:00:03]} Ke5 {[%emt 0:22:22] Weighted Error Value: White=0.70/Black=0.27 (precise)} 0-1

[Event "Bangabandhu Premier Div League 2022"]
[Site "Dhaka"]
[Date "2022.12.09"]
[Round "10.5"]
[White "Rahman, Ziaur"]
[Black "Anata, Choudhury"]
[Result "1-0"]
[ECO "A05"]
[WhiteElo "2464"]
[BlackElo "2176"]
[Annotator "TA"]
[PlyCount "83"]
[EventDate "2022.11.30"]
[EventType "team-tourn"]
[EventCountry "BAN"]
[SourceTitle "playchess.com"]
[Source "ChessBase"]
[SourceQuality "1"]
[TimeControl "40/5400+30:1800+30"]

{[%evp 13,82,14,13,14,7,6,4,7,10,8,15,21,35,20,28,19,22,24,22,18,35,42,33,10,10,0,38,40,35,32,45,35,60,27,25,21,33,0,30,10,39,40,41,8,20,17,129,133,244,244,238,247,326,323,359,198,281,278,262,179,191,186,308,191,317,352,465,468,29965,29962,29999]} 1. Nf3 {[%emt 0:01:25]} Nf6 {[%emt 0:00:15]} 2. b3 {[%emt 0:00:46]} g6 {[%emt 0:00:21]} 3. Bb2 {[%emt 0:00:04]} Bg7 {[%emt 0:00:08]} 4. g3 {[%emt 0:02:09]} O-O {[%emt 0:01:05]} 5. Bg2 {[%emt 0:00:03]} d5 {[%emt 0:01:00]} 6. c4 {[%emt 0:00:22]} e6 {[%emt 0:01:55]} 7. O-O {[%emt 0:00:50]} b6 {[%emt 0:00:47]} 8. cxd5 {[%emt 0:01:16] A05: Réti Opening: 1 Nf3 Nf6.} exd5 {[%emt 0:00:10]} 9. Nc3 {[%emt 0:04:52]} Bb7 {[%emt 0:00:39]} 10. d4 {[%emt 0:03:10] The position is equal.} Nbd7 {[%emt 0:01:10]} 11. Rc1 {[%emt 0:01:43]} a6 {[%emt 0:03:07]} 12. Ne5 {[%emt 0:09:21][%cal Bf3e5,Be5d3,Bd3f4][%mdl 32]} Re8 {[%emt 0:03:44]} 13. Nd3 Bf8 {[%emt 0:06:14]} 14. Nf4 {[%emt 0:02:37]} c6 {[%emt 0:01:13] [#]} 15. e3 $146 {[%emt 0:00:29]} ({Predecessor:} 15. Re1 Bh6 16. e3 Nf8 17. b4 Ne6 18. Nxe6 Rxe6 19. a4 b5 20. Ra1 Ne4 21. Nxe4 dxe4 {½-½ (39) Aguettaz,M (2327)-Delorme,A (2252) Grenoble 2006}) 15... Bd6 {[%emt 0:01:12]} 16. Qd2 Qe7 {[%emt 0:24:13]} 17. Rfe1 {[%emt 0:05:50]} Ne4 {[%emt 0:01:57]} 18. Qc2 {[%emt 0:01:28]} Rad8 {[%emt 0:07:07]} 19. Rcd1 {[%emt 0:04:21]} h5 {[%emt 0:08:18]} 20. f3 {[%emt 0:01:59]} Nxc3 {[%emt 0:00:33]} 21. Bxc3 {[%emt 0:00:11][%cal Of4g6]} Qg5 {[%emt 0:03:45]} 22. Nh3 {[%emt 0:03:54]} Qh6 {[%emt 0:03:59]} 23. Bd2 {[%emt 0:04:11][%cal Bc3d2,Bd2c1,Bc1b2][%mdl 32]} Qg7 {[%emt 0:01:16]} 24. Nf2 {[%emt 0:03:31]} c5 {[%emt 0:10:51]} 25. dxc5 {[%emt 0:03:16]} (25. Bc3 $5 {[%cal Rd4c5]}) 25... Bxc5 {[%emt 0:00:58]} 26. Nd3 {[%emt 0:00:41]} (26. b4 $5 {[%cal Rb4c5]} Bf8 27. f4 $14) 26... Bd6 {[%emt 0:00:07]} (26... Rc8 $5 {[%cal Rc5e3]} 27. Nxc5 Rxc5 $14) 27. Bc1 {[%emt 0:03:44]} Rc8 {[%emt 0:01:54]} 28. Qf2 {[%emt 0:00:25]} Nc5 {[%emt 0:00:52]} 29. Nf4 {[%emt 0:01:51]} Qe5 {[%emt 0:06:24]} (29... Rcd8 $11 {keeps the balance.}) 30. Bb2 $16 {[%emt 0:08:49]} Qg5 {[%emt 0:00:18] [#]} (30... Qe7 $16) 31. Nxd5 $1 $18 {[%emt 0:02:45][%mdl 512]} Bxd5 {[%emt 0:03:59]} 32. f4 {[%emt 0:00:05]} Qe7 {[%emt 0:03:43] Hoping for ...Be4.} 33. Bxd5 {[%emt 0:03:38]} (33. Rxd5 f5 34. Qd2 Rcd8) 33... Ne6 {[%emt 0:01:46]} 34. Kh1 {[%emt 0:02:54]} (34. f5 $142 Ng5 35. Kh1 (35. fxg6 $2 Nh3+ 36. Kg2 Nxf2 $19)) 34... Bb4 {[%emt 0:01:06]} (34... Nc7 {is a better defense.}) 35. Rf1 {[%emt 0:01:56]} Nc7 {[%emt 0:01:04][%cal Oc7d5]} 36. Bb7 {[%emt 0:01:56] A strong pair of Bishops.} Rcd8 {[%emt 0:00:45]} 37. e4 {[%emt 0:00:59]} Nb5 {[%emt 0:00:24]} (37... Bc3 $142 38. Rxd8 (38. Bxc3 Rxd1 39. Rxd1 Nb5 $18) 38... Rxd8 39. Bxc3 Nb5) 38. Bc6 {[%emt 0:00:51] Threatens to win with f5.} ({Weaker is} 38. Bxa6 Qxe4+ 39. Qg2 Qxg2+ 40. Kxg2 Re2+ 41. Kh3 (41. Kf3 Rxd1 42. Rxd1 Rxb2 $11) 41... Ra8 42. Bxb5 Rxb2 $14) (38. Qxb6 Rb8 39. Qxa6 Rxb7 $17) 38... Bc5 {[%emt 0:00:07]} (38... Rxd1 {was necessary.} 39. Rxd1 Rd8 40. Rxd8+ Qxd8) 39. Qf3 {[%emt 0:00:49]} Rf8 {[%emt 0:00:13]} 40. Bd5 {[%emt 0:01:03]} Nc7 {[%emt 0:00:30]} (40... Ba3 $18 41. Ba1 Kh7) 41. Qc3 {[%emt 0:31:06][%csl Gb2][%cal Rc3h8]} Ne6 {[%emt 0:30:13]} 42. Qh8# {[%emt 0:00:19] Weighted Error Value: White=0.16 (very precise) /Black=0.53} 1-0

[Event "Bangabandhu Premier Div League 2022"]
[Site "Dhaka"]
[Date "2022.12.09"]
[Round "10.5"]
[White "Murshed, Niaz"]
[Black "Abu Sufian, Shakil"]
[Result "1-0"]
[ECO "D15"]
[WhiteElo "2419"]
[BlackElo "2229"]
[Annotator "TA"]
[PlyCount "125"]
[EventDate "2022.12.01"]
[EventCountry "BAN"]
[SourceTitle "playchess.com"]
[Source "ChessBase"]
[SourceQuality "1"]
[TimeControl "40/5400+30:1800+30"]

{[%evp 10,125,32,22,18,17,18,18,26,14,64,68,66,47,53,7,88,81,88,92,97,83,109,61,66,63,68,68,102,102,103,91,174,170,186,181,211,180,267,240,204,224,199,185,192,193,258,233,258,203,187,164,196,0,157,135,166,167,212,167,234,234,234,250,285,260,231,0,266,249,383,410,419,399,433,429,437,428,427,413,689,487,505,409,1087,909,959,1061,1079,1034,963,964,881,636,660,626,577,569,452,368,722,756,827,708,699,681,945,955,12839,1830,12837,12838,12838,12838,2320,1931,1017,910]} 1. d4 {[%emt 0:00:01]} d5 {[%emt 0:00:15]} 2. c4 {[%emt 0:00:05]} c6 {[%emt 0:00:05]} 3. Nc3 {[%emt 0:00:05]} Nf6 {[%emt 0:00:09]} 4. e3 {[%emt 1:32:19]} a6 {[%emt 0:00:43]} 5. Nf3 {[%emt 0:00:00]} Bf5 {[%emt 1:31:48]} 6. Qb3 {[%emt 0:00:00]} Ra7 {[%emt 0:00:00] D15: Slav Defence: 4 Nc3 a6 and gambit lines after 4 Nc3 dxc4.} 7. Bd2 {[%emt 0:01:30]} e6 {[%emt 0:00:00]} 8. Nh4 {[%emt 0:00:00]} Be4 {The position is equal.} 9. c5 {[%emt 0:01:00]} Nbd7 {[%emt 0:00:00]} (9... h5 $11) 10. f3 $14 {[%emt 0:00:00]} Bg6 {[%emt 0:02:30]} 11. Nxg6 {[%emt 0:00:00] White is more active.} hxg6 {[%emt 0:00:30] [#]} 12. Na4 $146 {[%emt 0:00:00]} (12. Bd3 $14 {should be considered.}) ({Predecessor:} 12. Bd3 Be7 13. O-O-O b6 14. cxb6 Qxb6 15. Kc2 Qc7 16. Qa4 O-O 17. Rc1 Rb8 18. Nd1 {0-1 (35) Almeida Saenz,A (2292)-Tello Chavez,I (2270) Charlotte 2021}) 12... Be7 {[%emt 0:00:30]} (12... Nh5 $1 $11) 13. O-O-O $16 {[%emt 0:02:00]} Qb8 {[%emt 0:00:30]} 14. g3 {[%emt 0:00:30]} e5 {[%emt 0:00:00]} 15. Be2 {[%emt 0:00:30]} Nf8 {[%emt 0:01:00]} 16. Be1 {[%emt 0:00:30]} (16. Bc3 $16) 16... exd4 {[%emt 0:00:00]} 17. exd4 {[%emt 0:00:00]} Ne6 {[%emt 0:01:00]} 18. Kb1 {[%emt 0:00:00]} g5 {[%emt 0:00:30]} 19. Bf2 {[%emt 0:01:30]} Nd7 {[%emt 0:00:30]} 20. Bd3 {[%emt 0:00:30]} g6 {[%emt 0:00:00]} (20... O-O $16) 21. Rde1 $18 {[%emt 0:00:00][%cal Od3g6]} Rh6 {[%emt 0:01:00]} 22. Qc2 {[%emt 0:00:00][%cal Of3f4]} Kf8 {[%emt 0:00:00]} 23. f4 {[%emt 0:01:30]} Kg7 {[%emt 0:00:00]} (23... b5 {was worth a try.}) 24. f5 {[%emt 0:00:00]} gxf5 {[%emt 0:00:00]} 25. Bxf5 {[%emt 0:01:00]} Qh8 {[%emt 0:00:00] Prevents h4.} 26. h4 {[%emt 0:00:00] Hoping for Be3.} Ra8 {[%emt 0:02:30]} 27. Be3 {[%emt 0:01:00] aiming for Rhf1.} Ndf8 {[%emt 0:00:00]} (27... Kg8 $142 28. Qf2 Qg7) 28. Rhf1 {[%emt 0:00:30] Black must now prevent Qb3.} Kg8 {[%emt 0:01:00]} 29. Qd2 {[%emt 0:00:30]} Qg7 {[%emt 0:00:30]} 30. Nc3 {[%emt 0:00:30]} Rb8 {[%emt 0:00:30]} 31. Na4 $2 {[%emt 0:00:30]} (31. Ne2 $18) 31... Bf6 $2 {[%emt 0:00:00]} (31... Ra8 $1 $11) 32. Rd1 {[%emt 0:00:30]} Rh8 {[%emt 0:01:00]} 33. Nb6 {[%emt 0:00:00]} Rd8 {[%emt 0:00:30]} (33... gxh4 $2 34. gxh4 Re8 {[#]} 35. Nd7 $1) 34. Qf2 {[%emt 0:00:00]} Rh6 {[%emt 0:00:00]} (34... Re8 $142 35. Rh1 Rh5) 35. a4 {[%emt 0:01:30]} Be7 {[%emt 0:00:00]} 36. Ka2 {[%emt 0:00:30]} Rf6 {[%emt 0:00:00]} 37. Qe2 {[%emt 0:00:00]} Rh6 {[%emt 0:02:00]} 38. Qf2 {[%emt 0:00:00]} Rf6 $1 {[%emt 0:00:00]} 39. Rde1 {[%emt 0:01:30]} Rh6 {[%emt 0:01:00]} (39... Nh7 {was called for.} 40. h5 Nhf8) 40. hxg5 {[%emt 0:00:00]} Bxg5 {[%emt 0:00:00]} 41. Bxg5 {[%emt 0:30:15]} Nxg5 {[%emt 0:31:00]} 42. Re7 {[%emt 0:00:00]} Rf6 {[%emt 0:00:00]} 43. g4 {[%emt 0:01:45]} ({Less strong is} 43. Rxb7 Ne4 44. Qe3 Qg5 45. Qxg5+ Nxg5 $18) 43... Qh6 {[%emt 0:01:00]} 44. Qe3 {[%emt 0:00:30]} ({Weaker is} 44. Rxb7 Re8 45. Qf4 Kg7 $18) 44... Qh4 {[%emt 0:00:00]} (44... Nge6 $142 45. Qe5 Qg5) 45. Qe5 {[%emt 0:00:00]} Nge6 {[%emt 0:01:00]} 46. Rxb7 {[%emt 0:01:00][%cal Of1h1] Rh1! is the strong threat.} Ng7 {[%emt 0:00:30] [#]} (46... Qg5 $142 47. Ra7 Ng6) 47. Rh1 $3 {[%emt 0:00:30][%mdl 512]} Rxf5 {[%emt 0:00:00]} 48. gxf5 {[%emt 0:00:00]} Qxh1 {[%emt 0:00:00]} 49. Qe7 {[%emt 0:00:00][%csl LRd8,LRf7]} Qh5 {[%emt 0:00:00]} 50. Qxd8 {[%emt 0:00:00] White wants to mate with Nd7.} Qxf5 {[%emt 0:02:00]} 51. Qh4 {[%emt 0:00:00]} Nge6 {[%emt 0:00:00]} 52. Qg3+ {[%emt 0:02:30]} Ng6 {[%emt 0:00:00]} 53. Nc8 {[%emt 0:00:30] Intending Ne7+ and mate.} Qc2 {[%emt 0:00:00]} 54. Qb3 {[%emt 0:00:30]} Qf2 {[%emt 0:00:00]} (54... Qxb3+ 55. Kxb3 Nxd4+ 56. Kc3 Ne2+ 57. Kd3 Nef4+ 58. Kc2 Kg7) 55. Nd6 {[%emt 0:00:30] White is clearly winning.} Nxd4 {[%emt 0:00:00]} 56. Rb8+ {[%emt 0:00:30]} Nf8 {[%emt 0:00:00]} 57. Qh3 {[%emt 0:00:00]} Nde6 {[%emt 0:00:00]} 58. Qg4+ {[%emt 0:00:00]} Kh7 {[%emt 0:04:00]} 59. Rb3 {[%emt 0:01:30]} (59. Rb7 $142 Qf6 60. Rxf7+ Qxf7 61. Nxf7) 59... Ng6 {[%emt 0:00:00]} 60. Rf3 {[%emt 0:00:00]} Qc2 {[%emt 0:00:00]} 61. Rxf7+ {[%emt 0:00:00]} Kg8 {[%emt 0:01:30]} 62. Rf6 {[%emt 0:00:03]} ({And not} 62. Qxe6 Qxa4+ 63. Kb1 Qd1+ 64. Ka2 Qa4+ 65. Kb1 Qd1+ 66. Ka2 Qa4+ $11) 62... Nef8 {[%emt 0:00:00]} 63. Nf5 {[%emt 0:00:21] Weighted Error Value: White=0.37/Black=0.33} 1-0